bitfinex-derivatives/quotes_SOLF0:USTF0_20250830
["timestamp","ask_amount","ask_price","bid_price","bid_amount"]
[1756558550492,5.81,200.77,200.68,7.81]
[1756558551294,5.81,200.77,200.7,0.03552255]
[1756558552588,92.31,200.81,200.71,7.81]
[1756558552789,5.81,200.81,200.71,7.81]
[1756558553094,5.81,200.81,200.74,7.81]
[1756558553794,5.81,200.81,200.75,0.03698445]
[1756558555796,8.27518832,200.85,200.76,7.81]
[1756558555987,5.81,200.85,200.76,7.81]
[1756558556189,5.81,200.85,200.76,10.27518832]
[1756558560295,5.81,200.82,200.75,0.03698445]
[1756558560796,5.81,200.82,200.72,7.81]
[1756558560997,5.81,200.82,200.76,0.03636522]
[1756558561695,5.81,200.87,200.77,7.81]
[1756558561896,8.27518832,200.87,200.77,7.81]
[1756558562494,8.27518832,200.87,200.8,0.03236492]
[1756558563797,5.81,200.82,200.8,0.03236492]
[1756558564496,2.46518832,200.83,200.8,0.03236492]
[1756558565796,5.81,200.82,200.8,0.03236492]
[1756558566801,5.81,200.78,200.7,7.81]
[1756558567106,8.27518832,200.78,200.7,7.81]
[1756558571202,5.81,200.77,200.7,7.81]
[1756558575105,8.27518832,200.77,200.7,7.81]
[1756558577904,5.81,200.77,200.7,7.81]
[1756558578108,2.46518832,200.76,200.7,7.81]
[1756558578309,2.46518832,200.73,200.65,7.74]
[1756558578611,8.27518832,200.73,200.65,7.74]
[1756558584507,5.81,200.73,200.65,7.74]
[1756558585913,2.46518832,200.77,200.66,7.74]
[1756558586109,2.46518832,200.77,200.67,7.74]
[1756558587015,5.81,200.76,200.67,7.74]
[1756558588416,2.46518832,200.75,200.67,7.74]
[1756558591216,8.27518832,200.76,200.67,7.74]
[1756558591409,5.81,200.76,200.67,7.74]
[1756558591608,8.27518832,200.76,200.67,7.74]
[1756558596821,8.27518832,200.76,200.67,11.91026297]
[1756558597021,8.27518832,200.76,200.67,7.74]
[1756558599019,5.78,200.75,200.67,7.74]
[1756558599525,2.46518832,200.73,200.67,7.74]
[1756558601118,8.24518832,200.7,200.63,7.36]
[1756558601824,5.78,200.7,200.63,7.36]
[1756558603324,2.46518832,200.73,200.63,7.36]
[1756558603525,2.46518832,200.76,200.67,2.46518832]
[1756558603723,2.46518832,200.76,200.68,7.36]
[1756558608427,8.24518832,200.76,200.68,7.36]
[1756558610629,5.78,200.76,200.68,7.36]
[1756558610835,5.78,200.76,200.69,7.36]
[1756558611025,5.78,200.76,200.69,4.17026297]
[1756558611229,5.78,200.76,200.7,7.36]
[1756558611424,2.46518832,200.78,200.7,7.36]
[1756558611624,5.78,200.79,200.71,7.36]
[1756558611827,5.78,200.79,200.71,11.53026297]
[1756558612032,5.78,200.79,200.72,7.36]
[1756558616230,2.46518832,200.77,200.72,7.36]
[1756558616432,5.78,200.76,200.72,7.36]
[1756558617528,5.78,200.76,200.68,4.17026297]
[1756558617831,5.78,200.76,200.68,4.18938345]
[1756558618032,5.78,200.76,200.67,11.54938345]
[1756558618632,5.78,200.76,200.68,4.18938345]
[1756558619835,5.78,200.76,200.67,11.54938345]
[1756558620031,2.46518832,200.74,200.67,11.54938345]
[1756558620929,2.46518832,200.74,200.67,7.36]
[1756558620930,5.78,200.73,200.67,7.36]
[1756558626641,5.78,200.73,200.67,11.54938345]
[1756558627042,5.78,200.73,200.67,7.36]
[1756558627342,5.78,200.73,200.67,11.54938345]
[1756558627543,5.78,200.73,200.67,7.36]
[1756558628344,5.78,200.73,200.67,11.54938345]
[1756558628742,5.81,200.76,200.68,7.75]
[1756558629049,5.81,200.76,200.7,7.75]
[1756558629544,5.81,200.74,200.7,7.75]
[1756558630248,2.46518832,200.8,200.7,7.75]
[1756558630440,5.81,200.74,200.7,7.75]
[1756558630635,2.46518832,200.75,200.7,7.75]
[1756558631136,5.81,200.74,200.7,7.75]
[1756558631337,5.81,200.74,200.67,11.93938345]
[1756558631941,5.81,200.79,200.67,7.75]
[1756558632137,5.81,200.71,200.67,7.75]
[1756558633547,5.81,200.71,200.65,4.18938345]
[1756558634446,8.27518832,200.72,200.65,11.93938345]
[1756558635048,8.27518832,200.72,200.66,7.75]
[1756558636049,2.46518832,200.75,200.66,11.93938345]
[1756558636249,2.46518832,200.75,200.67,7.75]
[1756558639149,2.46518832,200.75,200.68,4.18938345]
[1756558639344,2.46518832,200.75,200.69,7.75]
[1756558641649,5.81,200.74,200.68,4.18938345]
[1756558642742,5.81,200.74,200.69,7.75]
[1756558642947,5.81,200.74,200.68,4.18938345]
[1756558643151,5.81,200.74,200.68,11.93938345]
[1756558647955,5.81,200.74,200.69,7.75]
[1756558648164,5.81,200.74,200.68,11.93938345]
[1756558652566,5.81,200.74,200.68,4.18938345]
[1756558652961,5.81,200.74,200.69,7.75]
[1756558653166,5.81,200.74,200.68,4.18938345]
[1756558653666,2.46518832,200.75,200.68,4.18938345]
[1756558653864,8.25518832,200.75,200.68,11.93938345]
[1756558655166,8.25518832,200.75,200.69,4.18938345]
[1756558655366,8.25518832,200.75,200.68,11.93938345]
[1756558657467,8.25518832,200.75,200.69,4.18938345]
[1756558658865,2.46518832,200.75,200.7,4.18938345]
[1756558659067,5.81,200.77,200.71,7.41]
[1756558659267,5.81,200.77,200.71,11.59938345]
[1756558659464,5.81,200.77,200.72,7.41]
[1756558659662,5.81,200.77,200.71,4.18938345]
[1756558660064,5.81,200.77,200.72,7.41]
[1756558660572,5.81,200.77,200.71,4.18938345]
[1756558660865,5.81,200.77,200.72,7.41]
[1756558661372,5.81,200.77,200.71,4.18938345]
[1756558661969,5.81,200.77,200.72,7.41]
[1756558662171,5.81,200.77,200.71,4.18938345]
[1756558662370,5.81,200.77,200.72,7.41]
[1756558662772,5.81,200.77,200.71,4.18938345]
[1756558663077,5.81,200.77,200.72,7.41]
[1756558663272,8.27518832,200.78,200.72,7.41]
[1756558664075,5.81,200.77,200.72,7.41]
[1756558664471,2.46518832,200.78,200.72,7.41]
[1756558664671,5.81,200.77,200.72,7.41]
[1756558664871,2.46518832,200.78,200.71,4.18938345]
[1756558665175,5.81,200.77,200.71,4.18938345]
[1756558665571,2.46518832,200.75,200.69,11.59938345]
[1756558665776,5.81,200.74,200.66,11.59938345]
[1756558665976,8.27518832,200.74,200.66,11.59938345]
[1756558666179,5.81,200.73,200.66,11.59938345]
[1756558666373,5.81,200.7,200.66,7.41]
[1756558667276,5.81,200.7,200.65,4.19520679]
[1756558667579,5.81,200.7,200.65,7.41]
[1756558668485,5.81,200.7,200.64,4.19520679]
[1756558668780,5.81,200.7,200.65,7.41]
[1756558669171,5.81,200.7,200.64,4.19520679]
[1756558669774,5.81,200.7,200.65,7.41]
[1756558669973,5.81,200.7,200.64,4.19520679]
[1756558670175,5.81,200.7,200.65,7.41]
[1756558670673,5.81,200.7,200.64,4.19520679]
[1756558670879,5.81,200.7,200.65,7.41]
[1756558671279,5.81,200.7,200.64,4.19520679]
[1756558671481,5.81,200.7,200.65,7.41]
[1756558671881,5.81,200.7,200.64,4.19520679]
[1756558672377,5.81,200.7,200.65,7.41]
[1756558672576,5.81,200.7,200.64,4.19520679]
[1756558673482,8.27518832,200.71,200.65,7.41]
[1756558674775,8.27518832,200.71,200.65,11.60520679]
[1756558674980,8.27518832,200.71,200.65,7.41]
[1756558676881,5.81,200.71,200.65,7.41]
[1756558683388,1.57376344,200.69,200.65,7.41]
[1756558683593,5.81,200.68,200.65,7.41]
[1756558684084,7.38376344,200.67,200.63,7.41]
[1756558684290,7.38376344,200.67,200.61,4.19520679]
[1756558684488,1.57376344,200.67,200.61,4.19520679]
[1756558684884,7.38376344,200.67,200.61,11.60520679]
[1756558688694,7.38376344,200.67,200.62,7.99]
[1756558688888,7.38376344,200.67,200.61,4.19520679]
[1756558689193,7.38376344,200.67,200.62,7.99]
[1756558689592,7.38376344,200.67,200.61,4.19520679]
[1756558689795,7.38376344,200.67,200.62,7.99]
[1756558690488,7.38376344,200.67,200.61,4.19520679]
[1756558690688,7.38376344,200.67,200.62,7.99]
[1756558690889,7.38376344,200.67,200.61,4.19520679]
[1756558691398,7.38376344,200.67,200.61,7.99]
[1756558691696,7.38376344,200.67,200.61,9.56376344]
[1756558691998,1.57376344,200.65,200.61,7.99]
[1756558692198,5.81,200.64,200.61,7.99]
[1756558693003,5.81,200.64,200.59,5.76897023]
[1756558693200,1.57376344,200.65,200.59,5.76897023]
[1756558693201,7.38376344,200.65,200.59,5.76897023]
[1756558693506,11.74,200.72,200.62,7.99]
[1756558693698,5.81,200.66,200.61,1.57376344]
[1756558694396,5.81,200.66,200.61,7.99]
[1756558694602,5.81,200.64,200.61,7.99]
[1756558695803,5.81,200.62,200.58,7.99]
[1756558696206,5.81,200.62,200.57,5.76897023]
[1756558696600,5.81,200.62,200.57,4.19520679]
[1756558696806,5.81,200.62,200.56,5.76897023]
[1756558697406,5.81,200.62,200.57,7.99]
[1756558697596,5.81,200.62,200.56,5.76897023]
[1756558697802,5.81,200.62,200.57,7.99]
[1756558698206,1.57376344,200.61,200.57,7.99]
[1756558698406,5.81,200.6,200.57,7.99]
[1756558700318,5.81,200.6,200.52,4.19520679]
[1756558700319,5.81,200.59,200.52,4.19520679]
[1756558700519,0.5,200.6,200.49,1.57376344]
[1756558700520,7.38376344,200.55,200.49,1.57376344]
[1756558700817,7.38376344,200.55,200.5,7.99]
[1756558701014,5.81,200.54,200.5,7.99]
[1756558701615,5.81,200.54,200.49,7.99]
[1756558701817,5.81,200.54,200.48,5.76897023]
[1756558702011,5.81,200.54,200.49,7.99]
[1756558702218,5.81,200.54,200.48,5.76897023]
[1756558702418,5.81,200.54,200.48,12.18520679]
[1756558702619,5.81,200.54,200.48,13.75897023]
[1756558703217,5.81,200.54,200.48,9.56376344]
[1756558703416,5.81,200.54,200.48,7.99]
[1756558706521,5.81,200.53,200.48,7.99]
[1756558706717,5.81,200.53,200.45,7.99]
[1756558707322,2.46259853,200.54,200.45,7.99]
[1756558707523,11.10259853,200.6,200.45,7.99]
[1756558707718,5.81,200.51,200.45,7.99]
[1756558711422,2.46259853,200.52,200.45,7.99]
[1756558711627,5.82,200.48,200.4,7.99]
[1756558713417,29.94,200.63,200.35,18.58]
[1756558713418,5.82,200.64,200.43,7.99]
[1756558713618,5.82,200.55,200.45,2.46259853]
[1756558713818,5.82,200.55,200.46,7.99]
[1756558716929,2.46259853,200.53,200.46,7.99]
[1756558717125,2.46259853,200.53,200.39,7.66]
[1756558717330,2.46259853,200.53,200.42,7.66]
[1756558717631,5.83,200.52,200.42,7.66]
[1756558717831,2.46259853,200.53,200.42,7.66]
[1756558718034,5.83,200.52,200.42,7.66]
[1756558718235,2.46259853,200.53,200.42,7.66]
[1756558718427,5.83,200.52,200.42,7.66]
[1756558718625,2.46259853,200.53,200.42,7.66]
[1756558719133,5.83,200.52,200.42,7.66]
[1756558719327,36.1,200.58,200.42,7.66]
[1756558719328,2.46259853,200.5,200.42,7.66]
[1756558719735,5.83,200.49,200.42,7.66]
[1756558720533,5.83,200.46,200.35,7.66]
[1756558720741,8.29259853,200.44,200.35,7.66]
[1756558722133,2.46259853,200.41,200.35,7.66]
[1756558722336,8.29259853,200.41,200.35,7.66]
[1756558723032,8.29259853,200.41,200.3,7.66]
[1756558723238,2.46259853,200.38,200.3,7.66]
[1756558724428,5.83,200.37,200.3,7.66]
[1756558726735,337.66259853,200.5,200.26,7.66]
[1756558726736,2.46259853,200.36,200.26,7.66]
[1756558727438,5.83,200.38,200.28,2.46259853]
[1756558727641,5.83,200.38,200.29,7.66]
[1756558729345,2.46259853,200.4,200.29,7.66]
[1756558734847,2.46259853,200.4,200.31,7.66]
[1756558735347,5.83,200.39,200.31,7.66]
[1756558740151,37.4,200.43,200.31,7.66]
[1756558740348,5.83,200.42,200.33,2.46259853]
[1756558740652,5.83,200.42,200.34,7.66]
[1756558742851,337.66259853,200.5,200.34,7.66]
[1756558742852,5.83,200.46,200.34,7.66]
[1756558743052,5.83,200.46,200.36,2.46259853]
[1756558743255,5.83,200.46,200.37,7.66]
[1756558748451,341.02,200.5,200.4,7.86]
[1756558750458,5.82,200.5,200.4,7.86]
[1756558753055,5.82,200.5,200.4,12.05520679]
[1756558753651,5.82,200.5,200.41,7.86]
[1756558754958,5.82,200.5,200.42,2.46259853]
[1756558755161,8.28259853,200.54,200.43,7.86]
[1756558755357,8.28259853,200.54,200.44,4.19520679]
[1756558755664,8.28259853,200.54,200.45,10.32259853]
[1756558756064,5.82,200.54,200.46,7.86]
[1756558756365,51.26,200.59,200.49,7.86]
[1756558756366,5.82,200.58,200.49,7.86]
[1756558759358,5.82,200.55,200.49,7.86]
[1756558759561,5.82,200.55,200.44,4.19520679]
[1756558759562,5.82,200.52,200.44,7.86]
[1756558761362,8.28259853,200.56,200.44,12.05520679]
[1756558761562,8.28259853,200.56,200.45,7.86]
[1756558761959,5.82,200.56,200.47,7.86]
[1756558762355,8.28259853,200.59,200.47,7.86]
[1756558762559,8.28259853,200.59,200.48,4.19520679]
[1756558762759,8.28259853,200.59,200.49,7.86]
[1756558765266,8.28259853,200.59,200.5,7.86]
[1756558766862,8.28259853,200.59,200.5,10.32259853]
[1756558767269,5.82,200.59,200.51,7.86]
[1756558767468,5.82,200.62,200.51,7.86]
[1756558767770,8.28259853,200.62,200.51,7.86]
[1756558768869,8.28259853,200.62,200.53,2.46259853]
[1756558769065,8.28259853,200.62,200.54,7.86]
[1756558769264,5.82,200.62,200.54,7.86]
[1756558769461,2.46259853,200.65,200.54,7.86]
[1756558770273,2.46259853,200.65,200.57,7.86]
[1756558770472,5.84,200.66,200.57,7.86]
[1756558770766,2.46259853,200.63,200.57,7.86]
[1756558770965,2.46259853,200.59,200.53,7.86]
[1756558774172,8.30259853,200.62,200.53,7.86]
[1756558777776,2.46259853,200.61,200.53,7.86]
[1756558778874,2.46259853,200.67,200.56,2.46259853]
[1756558779080,2.46259853,200.65,200.57,8.02]
[1756558781482,5.82,200.64,200.57,8.02]
[1756558782381,2.46259853,200.62,200.52,8.02]
[1756558782782,5.82,200.61,200.52,8.02]
[1756558782977,2.46259853,200.62,200.52,8.02]
[1756558783180,2.46259853,200.59,200.52,8.02]
[1756558787289,0.86761406,200.71,200.52,8.02]
[1756558787483,8.28259853,200.64,200.54,8.02]
[1756558792988,5.82,200.64,200.54,8.02]
[1756558793192,2.46259853,200.68,200.57,8.02]
[1756558794691,5.82,200.67,200.57,8.02]
[1756558797093,5.82,200.67,200.57,12.18580016]
[1756558797290,5.82,200.67,200.57,4.16580016]
[1756558797492,5.82,200.67,200.58,8.02]
[1756558802194,2.46259853,200.68,200.58,8.02]
[1756558802395,5.82,200.67,200.58,8.02]
[1756558804396,5.82,200.67,200.59,8.02]
[1756558804895,2.46259853,200.68,200.59,8.02]
[1756558805099,2.46259853,200.61,200.55,12.18580016]
[1756558805299,2.46259853,200.61,200.53,4.16580016]
[1756558805598,2.46259853,200.61,200.48,52.08]
[1756558805599,8.28259853,200.58,200.51,8.02]
[1756558807404,8.28259853,200.58,200.52,7.51]
[1756558808104,2.46259853,200.68,200.55,7.51]
[1756558808305,2.46259853,200.69,200.6,7.51]
[1756558808511,8.29259853,200.72,200.63,7.51]
[1756558808802,5.83,200.71,200.63,7.51]
[1756558809011,2.46259853,200.69,200.6,4.16580016]
[1756558809205,5.83,200.65,200.58,7.51]
[1756558809400,2.46259853,200.63,200.58,7.51]
[1756558809609,5.83,200.62,200.54,11.67580016]
[1756558810206,5.83,200.59,200.51,4.16580016]
[1756558810406,5.83,200.67,200.51,11.67580016]
[1756558810612,8.29259853,200.62,200.52,11.67580016]
[1756558811605,8.29259853,200.62,200.53,9.97259853]
[1756558811814,8.29259853,200.62,200.53,11.67580016]
[1756558812110,8.29259853,200.62,200.53,14.13839869]
[1756558812712,8.29259853,200.62,200.53,7.51]
[1756558816417,8.55,200.61,200.53,7.51]
[1756558822212,5.83,200.58,200.51,4.16580016]
[1756558822412,5.83,200.58,200.5,7.51]
[1756558822818,5.83,200.58,200.5,11.67580016]
[1756558824117,5.83,200.58,200.5,7.51]
[1756558824524,2.46259853,200.59,200.5,7.51]
[1756558824720,2.46259853,200.56,200.5,7.51]
[1756558825023,5.83,200.55,200.48,7.51]
[1756558825614,5.83,200.59,200.48,4.16580016]
[1756558825814,8.29259853,200.59,200.49,11.67580016]
[1756558826324,5.83,200.58,200.49,7.51]
[1756558828924,5.82,200.58,200.49,7.51]
[1756558829226,5.82,200.55,200.49,7.51]
[1756558833626,2.46259853,200.56,200.45,4.16580016]
[1756558833824,8.28259853,200.58,200.45,7.51]
[1756558834131,5.82,200.57,200.46,7.51]
[1756558835425,5.82,200.57,200.47,2.46259853]
[1756558835627,5.82,200.57,200.48,7.51]
[1756558836030,5.82,200.57,200.5,2.46259853]
[1756558836229,5.82,200.57,200.51,7.51]
[1756558836625,7.78,200.59,200.51,7.51]
[1756558838830,5.83,200.53,200.46,4.16580016]
[1756558839126,7.78,200.59,200.45,7.96]
[1756558839127,2.46259853,200.51,200.45,7.96]
[1756558841831,2.46259853,200.48,200.4,7.96]
[1756558842740,5.83,200.47,200.4,7.96]
[1756558843136,2.46259853,200.52,200.4,7.96]
[1756558843327,5.83,200.53,200.43,7.96]
[1756558843528,8.29259853,200.53,200.43,7.96]
[1756558844237,2.46259853,200.56,200.43,7.96]
[1756558844537,5.83,200.57,200.48,2.46259853]
[1756558844739,5.83,200.57,200.49,7.96]
[1756558846029,337.60259853,200.59,200.49,7.96]
[1756558846934,5.83,200.58,200.49,7.96]
[1756558848039,8.47,200.57,200.49,7.96]
[1756558864263,5.83,200.56,200.49,12.12580016]
[1756558864463,5.83,200.56,200.49,7.96]
[1756558865165,8.94,200.55,200.49,12.12580016]
[1756558865662,8.94,200.55,200.5,7.96]
[1756558866457,8.94,200.55,200.49,4.16580016]
[1756558866655,8.94,200.55,200.5,7.96]
[1756558866965,8.94,200.55,200.49,4.16580016]
[1756558867357,8.94,200.55,200.5,8.08]
[1756558867863,8.94,200.55,200.49,4.16580016]
[1756558868264,8.94,200.55,200.5,8.08]
[1756558868465,8.94,200.55,200.49,4.16580016]
[1756558868665,8.94,200.55,200.5,8.08]
[1756558868866,8.94,200.55,200.49,4.16580016]
[1756558869366,8.94,200.55,200.5,8.08]
[1756558869862,8.94,200.55,200.49,4.16580016]
[1756558870467,8.94,200.55,200.5,8.08]
[1756558870766,8.94,200.55,200.49,12.27178174]
[1756558873770,8.94,200.55,200.51,8.08]
[1756558873971,8.94,200.55,200.5,4.19178174]
[1756558874170,14.77,200.55,200.5,8.08]
[1756558874373,14.77,200.55,200.49,4.19178174]
[1756558874672,14.77,200.55,200.5,8.08]
[1756558874972,14.77,200.55,200.49,4.19178174]
[1756558875269,14.77,200.55,200.5,8.08]
[1756558875671,8.94,200.55,200.51,2.46259853]
[1756558875872,8.94,200.55,200.52,4.19178174]
[1756558876068,8.94,200.55,200.51,2.46259853]
[1756558876069,8.94,200.55,200.54,8.08]
[1756558876268,8.94,200.55,200.54,14.73438027]
[1756558876665,8.94,200.55,200.54,12.27178174]
[1756558876871,8.94,200.55,200.54,8.08]
[1756558879781,14.77,200.55,200.54,4.19178174]
[1756558880069,5.83,200.54,200.51,4.19178174]
[1756558880678,5.83,200.54,200.51,12.27178174]
[1756558881069,5.83,200.53,200.49,4.19178174]
[1756558881269,5.83,200.53,200.5,8.08]
[1756558881474,8.94,200.55,200.5,4.19178174]
[1756558881775,8.94,200.55,200.52,8.08]
[1756558881965,14.77,200.55,200.52,8.08]
[1756558882167,5.83,200.54,200.5,12.27178174]
[1756558882370,5.83,200.53,200.5,12.27178174]
[1756558884074,5.83,200.53,200.5,4.19178174]
[1756558884273,5.83,200.52,200.49,4.19178174]
[1756558884471,5.83,200.54,200.49,4.19178174]
[1756558884776,5.83,200.54,200.47,12.27178174]
[1756558886471,8.29259853,200.54,200.46,4.19178174]
[1756558887280,8.29259853,200.54,200.47,4.19178174]
[1756558887477,8.29259853,200.54,200.46,4.19178174]
[1756558887980,5.83,200.5,200.43,4.19178174]
[1756558888174,5.83,200.5,200.44,4.19178174]
[1756558889582,5.83,200.5,200.43,4.19178174]
[1756558890979,2.46259853,200.48,200.43,4.19178174]
[1756558891185,5.83,200.47,200.41,8.08]
[1756558893484,6.53,200.46,200.41,8.08]
[1756558893685,5.83,200.45,200.39,4.19178174]
[1756558893892,2.46259853,200.42,200.41,0.03174335]
[1756558894188,5.83,200.42,200.41,0.03174335]
[1756558895992,0.5,200.38,200.32,12.27178174]
[1756558896188,6.33,200.38,200.32,8.08]
[1756558896486,5.83,200.45,200.31,4.19178174]
[1756558896687,6.53,200.46,200.3,12.27178174]
[1756558896688,2.46259853,200.41,200.3,12.27178174]
[1756558896994,5.83,200.4,200.3,12.27178174]
[1756558897299,5.83,200.4,200.3,8.08]
[1756558897495,2.46259853,200.41,200.3,8.08]
[1756558897496,5.87675674,200.37,200.3,8.08]
[1756558897894,0.03675674,200.37,200.32,7.8]
[1756558898593,0.03675674,200.37,200.3,4.19178174]
[1756558898794,0.03675674,200.37,200.32,2.46259853]
[1756558899392,0.03675674,200.37,200.33,7.8]
[1756558899797,0.03675674,200.37,200.32,2.46259853]
[1756558900496,0.03675674,200.37,200.33,7.8]
[1756558900896,0.03675674,200.37,200.32,2.46259853]
[1756558901091,0.03675674,200.37,200.33,7.8]
[1756558901297,0.03675674,200.37,200.32,2.46259853]
[1756558901596,0.03675674,200.37,200.33,7.8]
[1756558901997,0.03675674,200.37,200.32,2.46259853]
[1756558902198,5.84,200.36,200.33,7.8]
[1756558902391,5.84,200.36,200.23,8.31263789]
[1756558902392,5.84,200.36,200.29,7.8]
[1756558903200,5.84,200.34,200.25,7.8]
[1756558905195,2.46259853,200.32,200.25,7.8]
[1756558905893,0.03338352,200.31,200.25,7.8]
[1756558908902,5.87338352,200.31,200.25,7.8]
[1756558910994,0.03338352,200.31,200.25,7.8]
[1756558919708,7.32,200.3,200.25,7.8]
[1756558920814,0.03338352,200.31,200.28,7.8]
[1756558921217,5.84,200.39,200.28,7.8]
[1756558921512,0.03556514,200.32,200.28,7.8]
[1756558921714,0.03556514,200.32,200.27,2.46259853]
[1756558922018,7.69,200.37,200.28,7.8]
[1756558922315,0.0344374,200.32,200.28,7.8]
[1756558922516,0.0344374,200.32,200.27,2.46259853]
[1756558923517,0.0344374,200.32,200.26,7.8]
[1756558925911,0.0344374,200.32,200.27,7.8]
[1756558926113,0.0344374,200.32,200.3,7.8]
[1756558926916,0.0344374,200.32,200.31,10.26259853]
[1756558928017,0.0344374,200.32,200.31,7.8]
[1756558931114,0.0344374,200.32,200.31,10.26259853]
[1756558931418,5.64,200.38,200.32,7.63]
[1756558931618,5.64,200.38,200.37,7.63]
[1756558932013,8.02,200.43,200.37,7.63]
[1756558935319,14.55,200.46,200.38,2.46259853]
[1756558936212,14.55,200.46,200.39,7.63]
[1756558936417,6.53,200.46,200.41,2.46259853]
[1756558936818,6.53,200.46,200.42,7.63]
[1756558937217,6.53,200.46,200.41,2.46259853]
[1756558937422,6.53,200.46,200.42,7.63]
[1756558938119,6.53,200.46,200.41,2.46259853]
[1756558938320,6.53,200.46,200.42,7.63]
[1756558938512,6.53,200.46,200.41,2.46259853]
[1756558938917,6.53,200.46,200.42,7.63]
[1756558939118,6.53,200.46,200.41,2.46259853]
[1756558940021,6.53,200.46,200.42,7.63]
[1756558940420,8.02,200.45,200.38,4.15966353]
[1756558940624,8.02,200.45,200.38,7.63]
[1756558946321,6.53,200.46,200.42,7.63]
[1756558946525,6.53,200.46,200.41,2.46259853]
[1756558947126,6.53,200.46,200.42,7.63]
[1756558947515,6.53,200.46,200.41,2.46259853]
[1756558948020,6.53,200.46,200.42,7.63]
[1756558948228,6.53,200.46,200.41,2.46259853]
[1756558948523,6.53,200.46,200.42,7.63]
[1756558948722,6.53,200.46,200.44,2.46259853]
[1756558948925,6.53,200.46,200.45,7.63]
[1756558950926,6.53,200.46,200.44,2.46259853]
[1756558951329,6.53,200.46,200.44,10.09259853]
[1756558951820,6.53,200.46,200.39,54.22]
[1756558951821,6.53,200.46,200.42,2.46259853]
[1756558952027,14.55,200.46,200.42,2.46259853]
[1756558952422,14.55,200.46,200.42,10.09259853]
[1756558952617,14.55,200.46,200.42,7.63]
[1756558953022,8.02,200.45,200.41,10.09259853]
[1756558953224,6.53,200.46,200.41,10.09259853]
[1756558953420,8.02,200.45,200.41,10.09259853]
[1756558954632,8.02,200.49,200.37,10.09259853]
[1756558955128,8.72259853,200.5,200.37,10.09259853]
[1756558955822,8.02,200.49,200.4,2.46259853]
[1756558956029,8.02,200.49,200.4,10.09259853]
[1756558956729,8.02,200.49,200.4,2.46259853]
[1756558956924,8.02,200.49,200.41,7.63]
[1756558957120,6.05,200.48,200.41,7.63]
[1756558957426,8.12,200.47,200.38,2.46259853]
[1756558958228,10.58259853,200.47,200.37,7.41]
[1756558959127,10.58259853,200.47,200.35,2.46259853]
[1756558959331,2.46259853,200.45,200.35,2.46259853]
[1756558959527,2.46259853,200.45,200.34,91.03116689]
[1756558959923,8.12,200.44,200.34,91.03116689]
[1756558960129,8.12,200.44,200.34,7.41]
[1756558964332,8.12,200.44,200.35,2.46259853]
[1756558964533,8.12,200.44,200.36,7.41]
[1756558964735,16.63259853,200.48,200.38,2.46259853]
[1756558964931,14.17,200.48,200.39,7.41]
[1756558965127,14.17,200.48,200.41,2.46259853]
[1756558965332,14.17,200.48,200.39,7.41]
[1756558966332,16.63259853,200.48,200.39,7.41]